Cogmind - Beta 15 @@@ ROGUE MODE // 2025.05.07 @ 21:06:44 Player: szymekc Result: Destroyed by D-53 Grenadier with Mini Grenade Launcher Performance ------------- Evolutions (0) 0 Regions Visited (2) 400 Robots Destroyed (22) 110 Value Destroyed (561) 561 Prototype IDs (0) 0 Alien Tech Used (0) 0 Bonus (0) 0 TOTAL SCORE: 1071 Bonus ------- None Cogmind --------- Core Integrity 0/250 Matter 300/300 Energy 94/100 System Corruption 0% Temperature Cool (0) Movement Rolling (125) Ox3 Location -10/Mines Parts ------- > --- POWER (1) -------- (None) > --- PROPULSION (2) --- Wheel > --- UTILITY (2) ------ High-capacity Storage Unit > --- WEAPON (2) ------- (None) > --- INVENTORY (20) --- Ion Engine Wheel Compact Wheel Heat Sink Heat Sink Structural Scanner Seismic Detector Datajack Plasma Cutter Peak State ------------ > --- POWER ------------ Ion Engine > --- PROPULSION ------- Light Treads Light Treads > --- UTILITY ---------- Improved Heat Sink High-capacity Storage Unit > --- WEAPON ----------- Small Laser Light Assault Rifle > --- INVENTORY -------- Heat Sink Heat Sink Structural Scanner Seismic Detector Hardened Light Armor Plating EM Pulse Gun Datajack Plasma Cutter [Rating: 10] Favorites ----------- Power Light Ion Engine Engine Light Ion Engine Propulsion Light Treads Treads Light Treads Wheel Wheel Flight Unit Flight Unit Utility Improved Heat Sink Device Improved Heat Sink Storage High-capacity Storage Unit Protection Hardened Light Armor Plating Weapon Small Laser Energy Gun Small Laser Ballistic Gun Light Assault Rifle Build | -11 -10 -10 ------- Run | Yrd Mat Min Slots Evolved . | . . . Power . | . . . Propulsion . | . . . Utility . | . . . Weapon . | . . . Parts Attached 18 | 6 10 2 Power 3 | 1 2 . Engine 3 | 1 2 . Core . | . . . Reactor . | . . . Propulsion 6 | 2 4 . Treads 2 | 2 . . Leg . | . . . Wheel 2 | . 2 . Hover . | . . . Flight 2 | . 2 . Utility 6 | 1 3 2 Device 4 | 1 2 1 Storage 1 | . 1 . Processor . | . . . Hackware . | . . . Protection 1 | . . 1 Artifact . | . . . Weapon 3 | 2 1 . Energy Gun 2 | 1 1 . Energy Cannon . | . . . Ballistic Gun 1 | 1 . . Ballistic Cannon . | . . . Launcher . | . . . Special Weapon . | . . . Impact Weapon . | . . . Slashing Weapon . | . . . Piercing Weapon . | . . . Special Melee Weapon . | . . . Unidentified Prototypes . | . . . Parts Lost 8 | . 3 5 Power 1 | . . 1 Propulsion 3 | . 2 1 Utility 1 | . . 1 Weapon 3 | . 1 2 Highest Loss Streak 5 | . 2 5 To Critical Strikes . | . . . Average Backups 5 | . 5 9 Power . | . . 1 Propulsion . | . . 2 Utility 2 | . 2 4 Weapon . | . . . Tool/Special . | . . . Unused Backups 6 | . . 6 Power 1 | . . 1 Propulsion 2 | . . 2 Utility 1 | . . 1 Weapon . | . . . Tool/Special 2 | . . 2 Average Slot Usage (%) 98 | . 98 97 Engine 13 | . 14 13 Treads 19 | . 23 . Wheel 6 | . 2 27 Flight 1 | . 1 . Device 19 | . 20 13 Storage 8 | . 6 14 Energy Gun 16 | . 14 26 Ballistic Gun 10 | . 13 . Peak Build Rating 10 | 6 10 10 Average Rating 8 | 4 8 9 On Entrance 5 | . 6 10 Naked Turns . | . . . Heaviest Build 49 | 6 49 47 Greatest Support 40 | 40 40 20 Greatest Overweight (x) 15 | . 15 4 Average Overweight (x) 1 | . . 2 Largest Inventory Capacity 20 | 5 20 20 Average Capacity 12 | 5 12 20 Most Carried 10 | 1 10 10 Average Carried 5 | . 5 9 Final Capacity 20 | 5 20 20 Final Carried 10 | 1 10 9 Class Distribution -------------------- 75% | Mutant 24% | Scavenger-Mutant Dominant Class ---------------- Mutant | -10/Materials Scavenger-Mutant | -10/Mines Resources | -11 -10 -10 ----------- Run | Yrd Mat Min Matter Collected 431 | 274 157 . Remotely . | . . . Salvage Created 904 | 128 776 . Parts 49 | 6 43 . Haulers Intercepted . | . . . Recyclers Shooed 3 | . 3 . Parts Field Recycled . | . . . Retrieved Matter . | . . . Parts Self-Destructed . | . . . Prevented . | . . . Kills | -11 -10 -10 ------- Run | Yrd Mat Min Combat Hostiles Destroyed 15 | . 15 . Guns 15 | . 15 . Classes Destroyed 7 | 3 4 . Worker 1 | 1 . . Builder 1 | . 1 . Tunneler 1 | 1 . . Recycler 3 | 1 2 . Watcher 1 | . 1 . Swarmer 2 | . 2 . Grunt 13 | . 13 . Best Kill Streak 3 | 2 3 . Combat Bots Only 3 | . 3 . Max Kills in Single Turn 1 | 1 1 . Gunslinging . | . . . Exploded . | . . . Melee . | . . . Uniques/NPCs Destroyed . | . . . Combat | -11 -10 -10 -------- Run | Yrd Mat Min Hostile Shots Fired 93 | . 86 7 Missed 25 | . 25 . Hits 68 | . 61 7 Projectile 68 | . 61 7 AOE 7 | . . 7 Critical Strikes 1 | . 1 . Damage Taken 1010 | . 723 287 Core 265 | . 170 95 Absorbed by Shields . | . . . Core Remaining (%) 100 | 100 . . Volleys Fired 95 | 14 81 . Largest 2 | 2 2 . Hottest 80 | 60 80 . Shots Fired 187 | 28 159 . Gun 187 | 28 159 . Cannon . | . . . Launcher . | . . . Special . | . . . Kinetic 89 | 14 75 . Thermal 93 | 14 79 . Explosive . | . . . Electromagnetic 5 | . 5 . Robot Hit Streak 12 | 6 12 . Robot Miss Streak 4 | 2 4 . Penetration Max . | . . . Secondary Targets 2 | . 2 . Max Gunslinging Chain 1 | . 1 . Shots Hit Robots 124 | 20 104 . Core Hits 52 | 8 44 . Critical Kills . | . . . Critical Parts Destroyed 1 | . 1 . Critical Strikes 1 | . 1 . Destroy 1 | . 1 . Melee Attacks . | . . . Impact . | . . . Slashing . | . . . Piercing . | . . . Sneak Attacks . | . . . Combat Hostiles . | . . . Follow-up Attacks . | . . . Damage Inflicted 1191 | 195 987 9 Guns 1171 | 195 976 . Cannons . | . . . Explosions . | . . . Melee . | . . . Ramming 20 | . 11 9 Kinetic 493 | 84 409 . Thermal 626 | 111 515 . Explosive . | . . . Electromagnetic 52 | . 52 . Impact . | . . . Slashing . | . . . Piercing . | . . . Highest Corruption . | . . . Average Corruption . | . . . Corruption Purged . | . . . Corruption Blocked . | . . . Overload Shots . | . . . Overflow Damage . | . . . Projectiles . | . . . Explosions . | . . . Melee . | . . . Knockbacks 1 | . . 1 Impact 1 | . . 1 Kinetic . | . . . Secondary . | . . . Self-Inflicted Damage 4 | . . 4 Shots . | . . . Rammed 3 | . 2 1 Targets Rammed 3 | . 2 1 Kicked . | . . . Crushed . | . . . Highest Temperature 121 | 40 121 . Average Temperature 33 | 17 39 . Received Heat Transfer 393 | . 393 . Siege Activations . | . . . Martial Activations . | . . . Shielding Activations . | . . . Robots Disrupted . | . . . Combat Hostiles . | . . . Robots Corrupted . | . . . Combat Hostiles . | . . . Parts Fried . | . . . Impact Corruptions . | . . . Robots Melted . | . . . Combat Hostiles . | . . . Parts Melted 1 | . 1 . Heat Transferred 1400 | 250 1150 . Parts Sabotaged . | . . . Parts Stolen . | . . . Parts Stripped . | . . . Power Chain Reactions . | . . . Alert | -11 -10 -10 ------- Run | Yrd Mat Min Maximum Alert Level . | . . . Low Security (%) 100 | 100 100 100 Level 1 . | . . . Level 2 . | . . . Level 3 . | . . . Level 4 . | . . . Level 5 . | . . . High Security . | . . . Max Security . | . . . Peak Influence 126 | 10 126 34 Initial 34 | . . 34 Average 36 | 1 47 5 Influence Increases 481 | 15 466 . Destroy 0b10 Robot/C 300 | . 300 . Destroy 0b10 Robot/NC 35 | 15 20 . Destroy Leader 72 | . 72 . Successful Hack 14 | . 14 . Select Force Hacks 30 | . 30 . Lose Combat Pursuer 30 | . 30 . Influence Decreases 481 | 15 378 88 Entered New Map 54 | . . 54 Time Decay 397 | 15 348 34 Lost Part 30 | . 30 . Squads Dispatched 3 | . 3 . Investigation 2 | . 2 . Extermination . | . . . Reinforcement 1 | . 1 . Assault . | . . . Garrison . | . . . Intercept . | . . . Searches Triggered . | . . . Construction Impeded . | . . . Haulers Reinforced . | . . . Active Scanning Responses . | . . . Cargo Convoy Interrupts . | . . . Stealth | -11 -10 -10 --------- Run | Yrd Mat Min Distress Signals . | . . . Communications Jammed . | . . . Distress Signals . | . . . Times Spotted 26 | . 24 2 Peak Tracking Total 3 | . 3 2 Tactical Retreats 2 | . 2 . Traps | -11 -10 -10 ------- Run | Yrd Mat Min Traps Triggered . | . . . Indirectly . | . . . Trap Hack Attempts . | . . . Triggered . | . . . Disarmed . | . . . Reprogrammed . | . . . Reused . | . . . Traps Extracted . | . . . Installed . | . . . Triggered . | . . . Machines | -11 -10 -10 ---------- Run | Yrd Mat Min Machines Disabled . | . . . Max in Single Turn . | . . . Machines Repaired . | . . . Machines Dismantled . | . . . Machines Sabotaged . | . . . Overloaded Fab Kills . | . . . Hacking | -11 -10 -10 --------- Run | Yrd Mat Min Machines Accessed 6 | . 6 . Terminals 5 | . 5 . Fabricators . | . . . Repair Stations . | . . . Recycling Units 1 | . 1 . Scanalyzers . | . . . Garrison Access . | . . . Total Hacks 19 | . 19 . Successful 13 | . 13 . Failed 6 | . 6 . Catastrophic 1 | . 1 . Database Lockouts . | . . . Manual 15 | . 15 . Terminals 16 | . 16 . Fabricators . | . . . Repair Stations . | . . . Recycling Units 3 | . 3 . Scanalyzers . | . . . Garrison Access . | . . . Terminal Hacks 4 | . 4 . Terminal Index 1 | . 1 . Locate Traps 1 | . 1 . Zone Layout 2 | . 2 . Fabricator Hacks . | . . . Repair Station Hacks . | . . . Recycling Unit Hacks 1 | . 1 . Retrieve Components 1 | . 1 . Scanalyzer . | . . . Garrison Access Hacks . | . . . Unauthorized Hacks 8 | . 8 . Terminals 7 | . 7 . Botnet 2 | . 2 . Skim 5 | . 5 . Fabricators . | . . . Repair Stations . | . . . Recycling Units 1 | . 1 . Tunnel 1 | . 1 . Scanalyzers . | . . . Garrison Access . | . . . Data Cores Recovered . | . . . Used . | . . . Hacking Detections 4 | . 4 . Full Trace Events . | . . . Feedback Events . | . . . Feedback Blocked . | . . . Robot Schematics Acquired . | . . . Robots Built . | . . . Authchips . | . . . Time . | . . . Total Robot Build Rating . | . . . Part Schematics Acquired . | . . . Parts Built . | . . . Authchips . | . . . Time . | . . . Total Part Build Rating . | . . . Parts Repaired . | . . . Time . | . . . Parts Recycled . | . . . Recycled Matter . | . . . Retrieved Matter . | . . . Retrieved Components 10 | . 10 . Parts Scanalyzed . | . . . Part Schematics Acquired . | . . . Parts Damaged . | . . . Bothacking | -11 -10 -10 ------------ Run | Yrd Mat Min Used RIF Installer . | . . . Robots Hacked . | . . . Non-combat . | . . . Combat . | . . . Robot Hacks Applied . | . . . Relay Couplers Released . | . . . Fabnet Peak Effective % . | . . . Robots Rewired . | . . . Allies Hacked . | . . . Hacks Repelled . | . . . Allies | -11 -10 -10 -------- Run | Yrd Mat Min Total Allies . | . . . Largest Group . | . . . Highest-Rated Group . | . . . Highest-Rated Ally . | . . . Total Orders . | . . . Ally Attacks . | . . . Total Damage . | . . . Kills . | . . . Allies Corrupted . | . . . Allies Melted . | . . . Intel | -11 -10 -10 ------- Run | Yrd Mat Min Active Infowar (turns) 687 | 50 637 . Structural 337 | . 337 . Seismic 687 | 50 637 . Robot Analysis Total . | . . . Derelict Logs Recovered 1 | . . 1 Drone Launches . | . . . Drone Recoveries . | . . . Exploration | -11 -10 -10 ------------- Run | Yrd Mat Min Turns Passed 1640 | 147 1242 251 Spaces Moved 809 | 65 527 217 Core 6 | 5 1 . Treads 510 | 60 450 . Legs . | . . . Wheels 282 | . 65 217 Hover . | . . . Flight 11 | . 11 . Fastest Speed 50 | 50 110 110 Average Speed 161 | 151 184 110 Slowest Speed 920 | 160 920 140 Overloaded Moves . | . . . Propulsion Burnouts . | . . . Robots Hopped . | . . . Potential Cave-ins . | . . . Cave-ins Triggered . | . . . Exploration Rate (%) 52 | 5 97 56 Regions Visited 2 Branch Regions 1 Pre-discovered Areas 1 | . 1 . Known Exits Taken . | . . . Unknown Exits Taken 2 | 1 1 . Scrap Searched 1 | . . 1 Spaces Dug . | . . . Terrain Destroyed . | . . . Melee . | . . . Projectile . | . . . AOE . | . . . Terrain Rammed . | . . . Walls Destroyed . | . . . Machines Disabled . | . . . Actions | -11 -10 -10 --------- Run | Yrd Mat Min Total 962 | 85 648 229 Wait 25 | . 17 8 Move 807 | 64 526 217 Hop . | . . . Pick Up 10 | 1 9 . Fast Attach 10 | 6 4 . Attach 1 | . 1 . Detach 1 | . 1 . Swap 7 | . 5 2 Drop 3 | . 2 1 Fire 95 | 14 81 . Melee . | . . . Ram 1 | . . 1 Kick . | . . . Crush 2 | . 2 . Escape Stasis . | . . . Rewire . | . . . Trap . | . . . Miscellaneous . | . . . Route ------- -11/Scrapyard -10/Materials (discovered 5 exits: [*Mat x3] / [*Min x2]) -10/Mines History --------- Turn | Location | Event 3 | -11/Scrapyard | Discovered new exit (range 15) 148 | -11/Scrapyard | Entered Materials 276 | -10/Materials | Discovered new exit (range 11) 309 | -10/Materials | Build established: Mutant 345 | -10/Materials | Discovered new exit (range 15) 620 | -10/Materials | Discovered new exit (range 15) 802 | -10/Materials | Discovered new exit (range 9) 814 | -10/Materials | Core integrity fell below 50% 1047 | -10/Materials | Discovered new exit (range 6) 1048 | -10/Materials | Derelicts attacked the area 1390 | -10/Materials | Entered Mines 1493 | -10/Mines | Learned location of 1 exit from Materials 1538 | -10/Mines | Build established: Scavenger-Mutant 1618 | -10/Mines | Assembled infested the area 1640 | -10/Mines | Core integrity fell below 20% 1641 | -10/Mines | Destroyed by D-53 Grenadier with Mini Grenade Launcher Last Messages --------------- Data stored: Materials exits (x1). 01546_ K-01 Serf collects debris. 01572_ Searching scrap... 01572_ Found Sml. Matter Pod. 01572_ Found 56 Matter. 01584_ Slammed into T-07 Excavator. 01584_ T-07 Excavator knocked back. 01584_ Imp. Heat Sink broken. 01584_ Destabilizing: Short circuit. 01598_ Dropped Broken Imp. Heat Sink. 01618_ ALERT: Infestation in the mines, dispatching Demolisher response squad. 01627_ K-01 Serf collects debris. 01628_ C-30 ARC bursts open, deploying its payload. 01628_ D-53 Grenadier unfolds itself. 01635_ Sml. Laser destroyed. 01635_ Lgt. Ion Engine destroyed. 01637_ Wheel destroyed. 01637_ EM Pulse Gun destroyed. 01639_ Hrd. Light Armor Plating destroyed. Map ----- +----------------------------------------------------+ | ???????# #???? ? #????# #???? | | ???????#!#?????? #?????# ##???? | | ???????# #?????? #??????###????? | | ???????# #?????? #?????????????? | | ???????# #?????? ?????????????? | | ???????# #?????? ??????????????? | | ???????# #????????????????????????? | | ???????# #????????????????????????? | | ???????# #????????????????????????? | | ???????# #????????????????????????? | | ???????# #????????????????????????? | | ???????# #????????????????????????? | | ??????## #?####???????????????????? | | ?????## ## ##??????????????????? | | ?????# #??????????????????? | | ????## #??????????????????? | | ????# #??????????????????? | | ????# #??????????????????? | | ????# #??????????????????? | | ????# ##??????????????????? | | ????## ##???????????????????? | | ?????## ##??????????????????? | | ?????# #??????????????????? | | ?????# #??????????????????? | | ?????# #??????????????????? | | ?????## d@ #??????????????????? | | ?????# d ##?????????????????? | | ?????## #?????????????? | | ?????# ##?????????????? | | ????# ##??????????????? | | ????# #???????????????? | | ????# #???????????????? | | ????# #???????????????? | | ????# #???????????????? | | ???? % #??????????????? | | ???# #??????????????? | | ???## ?????????????? | | ????### ??????????????? | | ??????## ###??????????????? | | ???????### ##????????????????? | | ??????????# #??????????????????? | | ???????????##?????????????????????? | | ??????????????????????????????????? | | | | | | | | | | | | | | | +----------------------------------------------------+ Best States ------------- Heat Dissipation 39 Energy Generation 10 Energy Capacity 250 Matter Stores 300 Matter Capacity 300 Sight Range 16 Terrain Scan Density 10 Evasion (%) 40 Recoil Reduction 2 Item Schematics ----------------- None Robot Schematics ------------------ None Fabricated ------------ Nothing Repaired ---------- Nothing Alien Tech Used ----------------- None Achievements -------------- None Challenges ------------ None Game ------ Seed ZioniteCloakingSlayer Manual? 0 Play Time 00:09:40 Cumulative 665.2 hours Start 2025.05.07 @ 20:57:56 End 2025.05.07 @ 21:06:44 Sessions 1 Manual Loads 0 Difficulty Rogue Special Mode None Game No. 226 Rogue 224 Adventurer 2 Explorer 0 Win Type - Total 36 Types 13/3/11/1/1/0/6/1/0/0 Lore% 93 Gallery% 91 Achievement% 81 Wizard Run 0 Options --------- Layout 0 ASCII 0 Keyboard 1 Movement Numpad Keybinds 0 Fullscreen 1 Font 24/Smallcaps Map View 76x50 Zoom Use 0% Tactical HUD 1 Map Filters NONE Filters NONE Steam 1 RUN: b51fe9f4-eb19-4628-8829-4dd528565e38